bitfinex-derivatives/quotes_ETHF0:USTF0_20210703
["timestamp","ask_amount","ask_price","bid_price","bid_amount"]
[1625303096342,4.41054,2203.5,2203.0,2.20527]
[1625303096445,4.41054,2203.5,2203.0,3.11397]
[1625303096795,4.41054,2203.5,2203.1,1.8962]
[1625303097047,4.41054,2203.5,2203.4,2.20527]
[1625303097898,4.41054,2203.5,2203.4,3.20527]
[1625303098750,4.41054,2203.5,2203.4,2.20527]
[1625303099449,4.41054,2203.5,2203.2,1.0]
[1625303101015,4.41054,2203.5,2203.4,2.20527]
[1625303101164,4.41054,2203.5,2203.4,3.20527]
[1625303102719,3.3904,2204.5,2203.4,3.20527]
[1625303102819,3.2217,2205.1,2203.4,3.20527]
[1625303102920,1.1,2205.3,2203.4,3.20527]
[1625303103020,2.20527,2203.9,2203.8,2.20527]
[1625303103121,1.20527,2203.9,2203.8,2.20527]
[1625303105040,3.41054,2203.9,2203.8,2.20527]
[1625303105538,4.0731,2205.2,2203.8,2.20527]
[1625303105641,1.0,2206.0,2203.8,10.75297]
[1625303105738,1.32199156,2206.6,2203.8,10.75297]
[1625303105940,1.32187375,2206.9,2203.8,10.75297]
[1625303106241,0.9029,2207.1,2203.8,10.75297]
[1625303106392,5.0,2206.9,2203.8,10.75297]
[1625303106492,0.9029,2207.1,2203.8,10.75297]
[1625303106591,1.1,2207.0,2203.8,10.75297]
[1625303106691,1.0,2206.9,2203.8,11.64897]
[1625303106841,1.0,2206.9,2203.8,10.75297]
[1625303107144,2.20527,2205.6,2205.4,2.20527]
[1625303108746,1.0,2206.9,2205.4,2.20527]
[1625303108844,1.1,2207.0,2205.4,2.20527]
[1625303109098,1.1,2207.0,2206.3,2.20527]
[1625303109099,2.20527,2206.4,2206.3,2.20527]
[1625303111197,2.20527,2206.7,2206.3,2.20527]
[1625303113051,2.20527,2206.4,2206.1,2.20527]
[1625303115057,2.20527,2206.2,2206.1,2.20527]
[1625303115157,4.93617,2206.2,2206.1,2.20527]
[1625303115714,4.93617,2206.2,2204.4,5.0]
[1625303116320,3.4194,2206.2,2204.4,5.0]
[1625303116420,3.4194,2206.2,2204.5,1.0]
[1625303116523,3.4194,2206.2,2204.5,4.1483]
[1625303116670,3.4194,2206.2,2204.7,1.0]
[1625303116924,3.4194,2206.2,2204.7,17.360146]
[1625303117173,3.4194,2206.2,2206.1,5.41054]
[1625303118636,3.4194,2206.2,2206.1,4.41054]
[1625303118742,3.4194,2206.2,2204.2,14.9962]
[1625303119041,3.4194,2206.2,2204.3,5.0]
[1625303119141,3.4194,2206.2,2206.1,2.20527]
[1625303120193,3.4194,2206.2,2206.1,3.20527]
[1625303120849,2.20527,2206.3,2206.1,3.20527]
[1625303120998,1.1,2207.0,2206.1,3.20527]
[1625303121100,1.1,2207.0,2206.8,2.20527]
[1625303121101,2.20527,2206.9,2206.8,2.20527]
[1625303122053,4.81517,2206.9,2206.8,2.20527]
[1625303122457,4.81517,2206.9,2204.4,14.309]
[1625303122656,4.81517,2206.9,2204.4,19.309]
[1625303123206,2.20527,2206.4,2206.1,2.20527]
[1625303123355,2.20527,2206.4,2206.1,3.20527]
[1625303124257,5.83057,2206.4,2206.1,2.20527]
[1625303125112,5.83057,2206.4,2206.2,2.20527]
[1625303125760,5.83057,2206.4,2206.2,3.20527]
[1625303126761,3.6253,2206.4,2206.2,3.20527]
[1625303126911,1.32132364,2208.3,2206.2,3.20527]
[1625303127011,1.1,2208.2,2206.2,3.20527]
[1625303127111,2.20527,2207.3,2207.1,2.20527]
[1625303127616,2.20527,2207.3,2207.1,3.20527]
[1625303128665,16.03578882,2208.6,2207.1,3.20527]
[1625303128916,1.32118882,2208.6,2207.1,3.20527]
[1625303129115,2.20527,2207.8,2207.6,2.20527]
[1625303130071,2.20527,2207.8,2207.7,1.0]
[1625303131022,2.42112909,2209.1,2207.7,1.0]
[1625303131170,2.20527,2208.2,2208.1,2.20527]
[1625303131673,2.20527,2208.2,2208.1,1.13179428]
[1625303132676,2.20527,2208.2,2208.1,2.13179428]
[1625303133227,2.20527,2208.2,2208.1,4.33706428]
[1625303134799,2.20527,2208.2,2208.1,3.33706428]
[1625303134894,5.38257,2208.2,2208.1,3.33706428]
[1625303134996,5.38257,2208.2,2206.1,14.7923]
[1625303135100,5.38257,2208.2,2206.2,5.0]
[1625303135195,5.38257,2208.2,2207.8,2.20527]
[1625303135846,5.38257,2208.2,2207.9,1.0]
[1625303136195,5.38257,2208.2,2207.8,2.20527]
[1625303137149,2.20527,2207.9,2207.8,2.20527]
[1625303139205,5.83397,2207.9,2207.8,2.20527]
[1625303142411,5.83397,2207.9,2207.8,3.20527]
[1625303150633,5.83397,2207.9,2207.6,2.20527]
[1625303150884,5.83397,2207.9,2207.1,1.0]
[1625303151335,5.83397,2207.9,2207.3,2.20527]
[1625303152289,5.83397,2207.9,2207.4,1.0]
[1625303152490,5.83397,2207.9,2207.3,2.20527]
[1625303153091,3.6287,2207.9,2207.3,2.20527]
[1625303153253,2.20527,2208.2,2207.8,4.41054]
[1625303153393,2.20527,2208.2,2207.8,6.91374]
[1625303153493,2.20527,2208.2,2207.8,7.91374]
[1625303155254,2.20527,2208.2,2208.1,2.20527]
[1625303156908,2.20527,2208.2,2207.8,3.20527]
[1625303157259,2.20527,2208.2,2208.1,2.20527]
[1625303160917,2.20527,2208.2,2208.1,3.20527]
[1625303161068,2.20527,2208.2,2208.1,2.20527]
[1625303164882,2.20527,2208.2,2207.9,1.0]
[1625303165086,2.20527,2208.2,2207.2,1.0]
[1625303165185,3.30527,2208.2,2205.1,0.9174]
[1625303165336,2.20527,2207.5,2207.4,2.20527]
[1625303165438,4.91587,2207.5,2207.4,2.20527]
[1625303167346,7.12114,2207.5,2207.4,2.20527]
[1625303167497,7.12114,2207.5,2207.2,1.0]
[1625303168611,7.12114,2207.5,2207.1,2.20527]
[1625303168866,7.12114,2207.5,2205.9,1.0]
[1625303169317,2.20527,2206.8,2206.7,2.20527]
[1625303169420,5.15507,2206.8,2206.7,2.20527]
[1625303171276,5.15507,2206.8,2206.4,2.20527]
[1625303171372,7.36034,2206.8,2206.4,2.20527]
[1625303173433,1.20527,2206.5,2206.4,2.20527]
[1625303174987,1.0,2207.4,2206.4,2.20527]
[1625303175086,6.08479912,2207.6,2206.4,5.60007]
[1625303175289,4.759,2207.6,2206.4,5.60007]
[1625303175384,4.759,2207.6,2207.5,2.20527]
[1625303176391,2.20527,2207.7,2207.5,2.20527]
[1625303177394,4.41054,2207.7,2207.5,2.20527]
[1625303177493,54.4012,2207.6,2205.4,19.4484]
[1625303177594,1.0,2207.5,2205.4,19.4484]
[1625303178806,1.0,2207.5,2205.4,14.4484]
[1625303179011,5.759,2207.5,2205.4,19.4484]
[1625303179109,5.759,2207.5,2205.4,14.4484]
[1625303179474,4.759,2207.5,2207.3,2.20527]
[1625303179974,1.0,2207.4,2205.4,14.4484]
[1625303181428,2.20527,2207.1,2207.0,2.20527]
[1625303182881,4.91107,2207.1,2207.0,2.20527]
[1625303183281,4.91107,2207.1,2207.0,1.96857]
[1625303183482,7.11634,2207.1,2206.8,2.20527]
[1625303191517,7.11634,2207.1,2206.8,4.41054]
[1625303192521,7.11634,2207.1,2206.8,7.92644]
[1625303197136,8.45023877,2207.1,2206.8,7.92644]
[1625303199889,1.33445544,2207.0,2206.8,7.92644]
[1625303202394,1.33456435,2206.9,2206.8,7.92644]
[1625303202945,1.33454295,2207.0,2206.8,7.92644]
[1625303203801,1.33460908,2206.9,2206.8,7.92644]
[1625303204603,1.33461807,2207.0,2206.8,7.92644]
[1625303206158,1.33469957,2206.9,2206.8,7.92644]
[1625303207322,1.33467231,2207.0,2206.8,7.92644]
[1625303209178,1.33500532,2206.9,2206.8,7.92644]
[1625303211331,1.86926183,2206.9,2206.8,7.92644]
[1625303211632,1.86931427,2207.0,2206.8,7.92644]
[1625303212037,1.86934313,2206.9,2206.8,7.92644]
[1625303212384,1.33523636,2206.9,2206.8,7.92644]
[1625303213137,1.86976516,2206.9,2206.8,7.92644]
[1625303214743,1.0,2207.8,2206.8,7.92644]
[1625303214845,4.27217922,2207.5,2206.8,7.92644]
[1625303214942,9.01327926,2208.1,2206.8,12.92644]
[1625303215146,8.01327926,2208.1,2206.8,12.92644]
[1625303215542,8.01327926,2208.1,2207.7,56.3324]
[1625303215646,8.01327926,2208.1,2207.7,58.6229]
[1625303215743,1.3348751,2208.1,2207.8,4.41054]
[1625303217459,1.33481237,2208.0,2207.8,4.41054]
[1625303217650,1.33473979,2207.9,2207.8,4.41054]
[1625303218704,0.9006,2208.3,2207.8,4.41054]
[1625303218851,3.2043,2208.5,2207.8,4.41054]
[1625303219202,1.34195723,2208.4,2207.8,4.41054]
[1625303219753,1.34195723,2208.4,2208.3,1.70349244]
[1625303220402,6.23342849,2208.8,2208.3,1.70349244]
[1625303221808,6.23342849,2208.8,2208.6,2.20527]
[1625303222258,6.23342849,2208.8,2208.6,1.13192408]
[1625303222857,6.23342849,2208.8,2208.6,3.57302408]
[1625303223208,1.34170631,2208.9,2208.6,3.57302408]
[1625303223617,6.23265246,2209.2,2208.6,3.57302408]
[1625303223831,15.10929095,2209.2,2209.0,2.20527]
[1625303223934,8.87663849,2209.2,2209.0,2.20527]
[1625303224080,8.87663849,2209.2,2208.6,1.13192408]
[1625303224182,2.20527,2208.9,2208.6,1.13192408]
[1625303224281,6.23327343,2209.1,2208.6,1.13192408]
[1625303224382,12.90510671,2209.1,2208.6,1.13192408]
[1625303224785,6.23327343,2209.1,2208.6,1.13192408]
[1625303224882,1.1,2209.0,2208.6,1.13192408]
[1625303225083,7.33263033,2209.0,2208.6,1.13192408]
[1625303225439,1.34183128,2208.9,2208.6,1.13192408]
[1625303225590,2.44183128,2208.9,2208.6,1.13192408]
[1625303225847,2.20527,2208.7,2208.6,1.13192408]
[1625303226141,3.54704991,2208.7,2208.6,1.13192408]
[1625303226992,1.1,2208.9,2208.6,1.13192408]
[1625303227093,2.20527,2209.2,2208.6,4.38682408]
[1625303227846,2.20527,2209.2,2209.1,4.41054]
[1625303227944,2.20527,2209.2,2209.1,7.88084]
[1625303228399,3.54683885,2209.2,2209.1,7.88084]
[1625303229650,58.00743885,2209.2,2209.1,7.88084]
[1625303229901,58.00743885,2209.2,2209.1,5.67557]
[1625303230003,58.00743885,2209.2,2209.1,2.20527]
[1625303233620,3.54683885,2209.2,2209.1,2.20527]
[1625303235779,3.54683885,2209.2,2208.6,2.20527]
[1625303235929,3.54683885,2209.2,2208.6,4.41054]
[1625303236230,1.34171497,2209.1,2208.6,4.41054]
[1625303237082,4.89011497,2209.1,2208.6,4.41054]
[1625303237383,1.34179277,2209.0,2208.6,4.41054]
[1625303237683,2.25029277,2209.0,2208.6,4.41054]
[1625303237883,2.20527,2208.7,2208.6,4.41054]
[1625303238892,3.53770148,2208.7,2208.6,4.41054]
[1625303239187,2.20527,2208.7,2208.6,4.41054]
[1625303239484,1.3323731,2208.8,2208.6,4.41054]
[1625303239587,1.3323731,2208.8,2208.6,6.91284]
[1625303240836,1.3320848,2208.7,2208.6,6.91284]
[1625303242293,3.53707943,2208.8,2208.6,6.91284]
[1625303242543,1.33184612,2208.7,2208.6,6.91284]
[1625303243497,3.5370414,2208.8,2208.6,6.91284]
[1625303243849,2.20527,2208.8,2208.6,6.91284]
[1625303244497,41.5631,2208.7,2208.6,6.91284]
[1625303244599,41.5631,2208.7,2208.6,2.20527]
[1625303244703,41.5631,2208.7,2206.6,1.28851092]
[1625303244801,1.0,2208.6,2206.4,1.28872041]
[1625303245250,2.33166353,2208.6,2206.2,1.28952783]
[1625303245551,2.20527,2208.8,2206.2,1.28952783]
[1625303245552,2.33170301,2208.5,2206.2,1.28952783]
[1625303245854,6.0,2208.4,2206.2,1.28952783]
[1625303245952,6.0,2208.4,2205.5,4.12710897]
[1625303245953,1.33179474,2208.3,2207.4,2.20527]
[1625303246308,3.24889474,2208.3,2206.1,3.7641]
[1625303246405,13.0,2208.2,2205.9,1.29036522]
[1625303246505,1.15,2207.8,2205.9,1.29036522]
[1625303246607,9.0,2207.7,2205.9,1.29036522]
[1625303246707,5.0,2207.6,2205.8,1.29104271]
[1625303246808,1.0,2207.5,2205.8,1.29104271]
[1625303247007,9.0,2207.5,2205.8,1.29104271]
[1625303247110,5.0,2207.4,2205.8,1.29104271]
[1625303247211,15.34301587,2207.4,2205.8,1.29104271]
[1625303247413,1.33276263,2206.5,2205.2,15.1416]
[1625303247610,47.8972,2205.6,2205.2,15.1416]
[1625303247959,4.41054,2205.3,2205.2,15.1416]
[1625303248060,7.27254,2205.3,2205.2,15.1416]
[1625303248262,7.27254,2205.3,2205.2,8.8336]
[1625303248362,7.27254,2205.3,2205.1,2.20527]
[1625303248715,8.27254,2205.3,2203.5,1.29810223]
[1625303249625,8.27254,2205.3,2203.4,1.29758115]
[1625303249930,2.20527,2204.8,2204.7,2.20527]
[1625303250029,4.61427,2204.8,2204.4,2.20527]
[1625303250329,4.61427,2204.8,2203.5,1.0]
[1625303250430,4.61427,2204.8,2203.3,1.29769129]
[1625303250530,5.61427,2204.8,2203.2,1.29796202]
[1625303250831,4.61427,2204.8,2203.3,1.29768756]
[1625303251531,4.61427,2204.8,2203.4,1.29733701]
[1625303251832,4.61427,2204.8,2203.3,1.29638943]
[1625303251931,4.61427,2204.8,2204.3,2.20527]
[1625303252132,4.61427,2204.8,2204.1,2.20527]
[1625303252737,4.61427,2204.8,2202.8,2.2972171]
[1625303252835,5.61427,2204.8,2202.8,6.2972171]
[1625303253386,5.61427,2204.8,2202.8,1.2972171]
[1625303253796,5.61427,2204.8,2202.5,1.29646843]
[1625303253945,2.20527,2204.2,2204.1,2.20527]
[1625303254101,1.33133629,2205.6,2204.1,5.10977]
[1625303254248,1.33080658,2207.7,2204.1,5.10977]
[1625303254249,1.33004564,2206.0,2204.1,5.10977]
[1625303255014,1.33007087,2205.9,2204.1,10.10977]
[1625303255549,14.5029,2206.5,2204.1,10.10977]
[1625303255948,2.20527,2206.2,2206.1,2.20527]
[1625303256853,2.20527,2206.2,2204.3,5.0]
[1625303257002,3.20527,2206.2,2204.3,5.0]
[1625303257905,6.85817,2206.2,2204.3,5.0]
[1625303258053,2.20527,2205.5,2205.3,2.20527]
[1625303258504,1.32946078,2206.9,2205.3,2.20527]
[1625303258955,1.32914569,2207.0,2205.3,2.20527]
[1625303259758,1.32895518,2207.1,2205.3,2.20527]
[1625303260008,2.20527,2205.8,2205.7,2.20527]
[1625303261761,2.20527,2205.8,2205.3,2.20527]
[1625303262063,2.20527,2205.4,2205.3,2.20527]
[1625303262564,2.20527,2205.4,2203.7,1.29230063]
[1625303263016,2.20527,2205.4,2204.2,1.0]
[1625303263165,2.20527,2205.4,2204.2,2.4422]
[1625303263766,2.20527,2205.4,2204.2,7.4422]
[1625303264068,2.20527,2205.4,2205.3,2.20527]
[1625303264219,2.20527,2205.8,2205.3,5.53877]
[1625303266073,2.20527,2205.8,2205.6,2.20527]
[1625303267326,2.20527,2205.8,2205.3,2.20527]
[1625303268131,2.20527,2205.8,2205.6,2.20527]
[1625303268280,2.20527,2205.8,2205.6,5.53447]
[1625303269334,15.2851,2206.6,2205.6,5.53447]
[1625303270188,15.2851,2206.6,2206.5,5.79957]
[1625303270437,2.20527,2206.7,2206.5,5.79957]
[1625303272096,4.41054,2206.7,2206.5,5.79957]
[1625303273811,4.41054,2206.7,2205.1,16.4172]
[1625303273908,4.41054,2206.7,2205.1,15.4172]
[1625303274010,8.15494,2206.7,2205.1,15.4172]
[1625303274156,8.15494,2206.7,2205.7,2.20527]
[1625303274157,2.20527,2205.8,2205.7,2.20527]
[1625303274606,2.20527,2205.8,2205.1,15.4172]
[1625303276161,1.0,2206.7,2205.7,2.20527]
[1625303276316,54.5296,2207.0,2205.7,5.26667]
[1625303277816,59.5296,2207.0,2205.7,5.26667]
[1625303278119,4.41054,2205.8,2205.7,5.26667]
[1625303278569,4.41054,2205.8,2205.7,3.0614]
[1625303278722,4.41054,2205.8,2205.1,15.4172]
[1625303279870,39.9759,2205.7,2205.1,15.4172]
[1625303280174,2.20527,2205.2,2205.1,15.4172]
[1625303280271,2.20527,2205.2,2205.0,2.20527]
[1625303281577,2.20527,2205.3,2205.0,2.20527]
[1625303282175,2.20527,2205.3,2205.1,2.20527]
[1625303282428,7e-05,2205.3,2205.1,2.20527]
[1625303285584,7e-05,2205.3,2205.1,5.74447]
[1625303286996,2.20527,2205.6,2205.1,5.74447]
[1625303288155,2.20527,2205.6,2205.5,2.20527]
[1625303292463,2.20527,2206.0,2205.5,2.20527]
[1625303294270,2.20527,2206.0,2205.9,2.20527]
[1625303295371,2.20527,2206.0,2205.9,4.57167]
[1625303297928,2.20527,2206.0,2205.5,2.20527]
[1625303298029,4.60937,2206.0,2205.5,2.20527]
[1625303298329,41.259,2205.5,2205.2,2.20527]
[1625303300033,41.259,2205.5,2204.4,15.4519]
[1625303300281,2.20527,2204.7,2204.5,2.20527]
[1625303300382,2.20527,2204.7,2204.5,5.72747]
[1625303301133,41.259,2205.5,2204.5,5.72747]
[1625303302287,2.20527,2204.6,2204.5,5.72747]
[1625303304390,2.20527,2204.6,2204.5,2.20527]
[1625303308916,2.20527,2204.8,2204.5,2.20527]
[1625303309017,2.20527,2204.8,2204.5,5.50177]
[1625303309169,40.8526,2205.8,2204.5,5.50177]
[1625303310368,2.20527,2205.6,2205.5,2.20527]
[1625303310769,2.20527,2205.6,2204.5,3.2965]
[1625303312323,2.20527,2204.7,2204.6,2.20527]
[1625303312425,2.20527,2204.7,2204.4,15.4519]
[1625303314387,4.41054,2204.7,2204.6,2.20527]
[1625303314887,4.41054,2204.7,2204.6,5.18257]
[1625303318424,2.20527,2204.7,2204.6,5.18257]
[1625303322880,2.20527,2204.7,2204.6,2.9773]
[1625303323030,2.20527,2204.7,2204.4,15.4519]
[1625303324435,4.41054,2204.7,2204.6,2.20527]
[1625303326339,1.896,2205.7,2204.6,5.86017]
[1625303326440,2.20527,2205.3,2204.6,5.86017]
[1625303326693,2.20527,2205.5,2204.6,5.86017]
[1625303327093,2.20527,2205.5,2204.7,5.0]
[1625303327494,1.0,2206.2,2204.7,5.0]
[1625303327696,1.0,2206.5,2204.7,5.0]
[1625303328044,1.0,2206.5,2205.2,43.9413]
[1625303328145,1.32870477,2207.0,2205.2,47.6857]
[1625303328454,2.20527,2206.8,2206.6,4.41054]
[1625303328551,2.20527,2206.8,2206.6,7.34444]
[1625303328909,108.0,2206.7,2206.6,7.34444]
[1625303329110,70.0938,2206.7,2206.6,7.34444]
[1625303332379,70.0938,2206.7,2206.6,4.41054]
[1625303332477,72.29907,2206.7,2206.6,4.41054]
[1625303333177,72.29907,2206.7,2205.3,1.0]
[1625303333278,74.69217,2206.7,2205.3,1.0]
[1625303333377,74.69217,2206.7,2204.9,47.4377]
[1625303333479,74.69217,2206.7,2204.9,52.4377]
[1625303334078,72.4869,2206.7,2204.9,52.4377]
[1625303334281,70.0938,2206.7,2204.9,52.4377]
[1625303334481,70.0938,2206.7,2206.6,4.41054]
[1625303334631,70.0938,2206.7,2206.6,7.43364]
[1625303336038,70.0938,2206.7,2206.6,4.41054]
[1625303339798,70.0938,2206.7,2206.6,6.83854]
[1625303341599,70.0938,2206.7,2206.6,4.41054]
[1625303344527,70.0938,2206.7,2206.6,6.75334]
[1625303346631,7.1426,2206.7,2206.6,11.75334]
[1625303346730,1.33223561,2207.7,2206.6,11.75334]
[1625303346981,1.33223561,2207.7,2206.6,48.02044]
[1625303347130,2.66447122,2208.0,2206.6,48.02044]
[1625303347131,1.33210313,2208.0,2206.6,48.02044]
[1625303347331,1.33210313,2208.0,2206.6,53.02044]
[1625303347432,1.33211891,2207.9,2206.6,53.02044]
[1625303347733,1.33211891,2207.9,2206.6,11.75334]
[1625303348088,1.33194401,2208.0,2206.6,11.75334]
[1625303348536,3.53721401,2208.0,2207.9,4.41054]
[1625303348890,2.20527,2208.0,2207.9,4.41054]
[1625303349493,16.1404883,2208.2,2207.9,4.41054]
[1625303349891,14.8092,2208.2,2207.9,4.41054]
[1625303351192,1.33096263,2208.6,2207.9,4.41054]
[1625303351295,1.33096263,2208.6,2207.9,7.56694]
[1625303351697,2.65994522,2208.8,2207.9,7.56694]
[1625303351698,1.3299186,2208.8,2207.9,7.56694]
[1625303352654,15.1477,2208.9,2208.7,4.41054]
[1625303352655,3.53413434,2208.9,2208.7,4.41054]
[1625303352799,3.53413434,2208.9,2208.7,7.08394]
[1625303354306,1.32874261,2208.8,2208.7,7.08394]
[1625303354606,1.32874261,2208.8,2208.7,6.01052852]
[1625303355258,1.32874261,2208.8,2208.7,2.6734]
[1625303355405,1.32874261,2208.8,2207.9,3.1564]
[1625303356417,1.32809529,2208.7,2207.2,2.8694]
[1625303356518,1.32809529,2208.7,2205.5,1.28630205]
[1625303356616,2.20527,2208.3,2208.2,2.20527]
[1625303358626,4.41054,2208.3,2208.2,2.20527]
[1625303359378,1.32758216,2208.7,2208.2,2.20527]
[1625303359881,1.32703594,2208.8,2208.2,2.20527]
[1625303360280,1.32702333,2208.9,2208.2,2.20527]
[1625303360479,1.32660532,2209.0,2208.2,2.20527]
[1625303360680,2.20527,2208.3,2208.2,2.20527]
[1625303364140,2.20527,2208.3,2208.0,2.20527]
[1625303364240,1.32621052,2208.9,2208.0,2.20527]
[1625303364492,1.32559062,2209.4,2208.0,2.20527]
[1625303364690,2.20527,2209.2,2208.9,2.20527]
[1625303364790,2.20527,2209.2,2207.6,50.5507]
[1625303364990,2.20527,2209.2,2207.6,3.2836]
[1625303365093,2.20527,2209.2,2207.2,5.0]
[1625303365294,2.20527,2209.2,2206.7,1.0]
[1625303365394,3.20527,2209.2,2206.6,2.3428]
[1625303365592,3.20527,2209.2,2205.8,0.9017]
[1625303366194,3.20527,2209.2,2206.3,21.430625]
[1625303366295,3.20527,2209.2,2206.3,23.979825]
[1625303366497,4.53070873,2209.2,2206.3,23.979825]
[1625303366746,3.53070873,2209.2,2208.8,2.20527]
[1625303367698,53.2482,2209.0,2208.8,2.20527]
[1625303367948,2.20527,2209.2,2208.8,2.20527]
[1625303368699,2.20527,2208.9,2208.8,2.20527]
[1625303370802,2.20527,2209.2,2208.8,2.20527]
[1625303372702,4.41054,2209.2,2209.1,2.20527]
[1625303372805,4.41054,2209.2,2209.1,4.79627]
[1625303373058,4.41054,2209.2,2209.1,3.72298914]
[1625303374577,4.41054,2209.2,2209.1,2.591]
[1625303378083,4.41054,2209.2,2208.8,4.41054]
[1625303378684,2.20527,2208.9,2208.8,4.41054]
[1625303380994,2.20527,2208.9,2208.8,4e-05]
[1625303381097,2.20527,2208.9,2207.4,1.0]
[1625303381199,10.85307,2208.9,2206.3,3.0822]
[1625303381296,1.0,2208.8,2205.8,5.0]
[1625303381898,15.8957,2208.8,2205.8,5.0]
[1625303382749,2.20527,2207.8,2207.7,2.20527]
[1625303382848,3.20527,2207.8,2207.7,2.20527]
[1625303384805,4.41054,2207.8,2207.7,2.20527]
[1625303386107,5.41054,2207.8,2207.7,2.20527]
[1625303388270,5.41054,2207.8,2205.9,5.0]
[1625303388817,2.20527,2207.4,2207.3,2.20527]
[1625303388879,2.20527,2207.4,2207.3,4.84007]
[1625303391338,3.20527,2207.4,2207.3,4.84007]
[1625303391437,2.20527,2207.4,2207.3,4.84007]
[1625303391687,3.20527,2207.4,2207.3,4.84007]
[1625303392036,4.09867,2207.4,2207.3,5.74677]
[1625303392437,3.20527,2207.4,2207.3,4.84007]
[1625303392789,2.20527,2207.4,2207.3,4.84007]
[1625303396951,3.20527,2207.4,2207.3,4.84007]
[1625303397353,2.20527,2207.4,2207.3,4.84007]
[1625303397451,3.20527,2207.4,2207.3,4.84007]
[1625303399062,2.20527,2207.4,2207.3,4.84007]
[1625303399363,3.20527,2207.4,2207.3,4.84007]
[1625303400415,2.20527,2207.4,2207.3,4.84007]
[1625303401219,3.20527,2207.4,2207.3,4.84007]
[1625303401817,3.20527,2207.4,2207.3,2.6348]
[1625303401968,3.20527,2207.4,2207.1,2.20527]
[1625303402876,5.41054,2207.4,2207.1,2.20527]
[1625303406593,4.41054,2207.4,2207.1,2.20527]
[1625303406699,5.41054,2207.4,2207.1,2.20527]
[1625303407345,48.0467,2207.3,2207.1,2.20527]
[1625303407448,48.0467,2207.3,2205.4,9.759]
[1625303408902,48.0467,2207.3,2207.1,2.20527]
[1625303409053,48.0467,2207.3,2206.8,2.20527]
[1625303410906,4.41054,2206.9,2206.8,2.20527]
[1625303411006,5.41054,2206.9,2206.8,2.20527]
[1625303412458,4.41054,2206.9,2206.8,2.20527]
[1625303412860,5.41054,2206.9,2206.8,2.20527]
[1625303413062,5.41054,2206.9,2205.4,4.759]
[1625303414218,8.54584,2206.9,2205.4,4.759]
[1625303415025,2.20527,2206.2,2206.0,2.20527]
[1625303415128,5.00017,2206.2,2206.0,2.20527]
[1625303415420,6.00017,2206.2,2206.0,2.20527]
[1625303415570,6.00017,2206.2,2205.1,1.2949766]
[1625303415677,6.00017,2206.2,2204.8,1.29565821]
[1625303416582,6.00017,2206.2,2204.6,1.81365112]
[1625303416583,6.00017,2206.2,2204.6,1.2959338]
[1625303416884,6.00017,2206.2,2204.6,3.11007649]
[1625303416985,2.20527,2205.6,2205.5,2.20527]
[1625303417184,3.20527,2205.6,2205.5,2.20527]
[1625303417382,2.20527,2205.6,2205.5,2.20527]
[1625303418383,3.20527,2205.6,2205.5,2.20527]
[1625303418685,2.20527,2205.6,2205.5,2.20527]
[1625303418785,2.20527,2205.6,2205.3,2.20527]
[1625303418987,2.20527,2205.9,2205.5,2.20527]
[1625303419087,2.20527,2205.9,2205.5,5.09407]
[1625303419488,2.20527,2205.9,2205.5,2.8888]
[1625303419988,3.20527,2206.1,2205.5,2.8888]
[1625303420088,2.20527,2206.1,2205.5,2.8888]
[1625303420342,16.20117316,2206.9,2205.5,2.8888]
[1625303420696,14.8674,2206.9,2205.5,2.8888]
[1625303420945,2.20527,2206.3,2206.2,2.20527]
[1625303421047,2.20527,2206.3,2206.2,5.05987]
[1625303421596,2.20527,2206.6,2206.2,5.05987]
[1625303423008,2.20527,2206.6,2206.5,2.20527]
[1625303424514,2.20527,2206.6,2206.2,2.20527]
[1625303425016,2.20527,2206.3,2206.2,2.20527]
[1625303426982,2.20527,2206.6,2206.2,2.20527]
[1625303427083,2.20527,2206.6,2206.2,5.31787]
[1625303429090,2.20527,2206.6,2206.5,2.20527]
[1625303429635,1.33447321,2207.4,2206.5,2.20527]
[1625303430188,1.0,2207.4,2206.5,2.20527]
[1625303430988,15.4655,2207.6,2206.5,2.20527]
[1625303431087,2.20527,2207.4,2207.3,4.58887]
[1625303432443,3.20527,2207.4,2207.3,4.58887]
[1625303433043,5.41054,2207.4,2207.3,2.3836]
[1625303433394,4.41054,2207.4,2207.3,2.3836]
[1625303433893,5.41054,2207.4,2207.3,2.3836]
[1625303433994,5.41054,2207.4,2206.8,2.20527]
[1625303435047,4.41054,2206.9,2206.8,2.20527]
[1625303438964,5.41054,2206.9,2206.8,2.20527]
[1625303439064,4.41054,2206.9,2206.8,2.20527]
[1625303439418,5.41054,2206.9,2206.8,2.20527]
[1625303439718,4.41054,2206.9,2206.8,2.20527]
[1625303441675,5.41054,2206.9,2206.8,2.20527]
[1625303442071,4.41054,2206.9,2206.8,2.20527]
[1625303445196,1.33498458,2207.5,2206.8,2.20527]
[1625303445346,15.4655,2207.6,2206.8,2.20527]
[1625303446353,1.0,2207.5,2206.8,2.20527]
[1625303446651,15.4655,2207.6,2206.8,2.20527]
[1625303447106,15.4655,2207.6,2207.5,2.20527]
[1625303447205,15.4655,2207.6,2207.5,5.33177]
[1625303447902,16.4655,2207.6,2207.5,5.33177]
[1625303448003,15.4655,2207.6,2207.5,5.33177]
[1625303448459,16.4655,2207.6,2207.5,5.33177]
[1625303449166,18.67077,2207.6,2207.5,5.33177]
[1625303452578,17.67077,2207.6,2207.5,5.33177]
[1625303452678,15.4655,2207.6,2207.5,5.33177]
[1625303453130,16.4655,2207.6,2207.5,5.33177]